Cogmind - Beta 15 @@@ ROGUE MODE // 2025.08.06 @ 22:39:04 Player: Avari3l Result: Self-destructed Performance ------------- Evolutions (2) 1000 Regions Visited (3) 600 Robots Destroyed (43) 215 Value Destroyed (1027) 1027 Prototype IDs (0) 0 Alien Tech Used (0) 0 Bonus (0) 0 TOTAL SCORE: 2842 Bonus ------- None Cogmind --------- Core Integrity 472/550 Matter 117/300 Energy 100/100 System Corruption 0% Temperature Cool (9) Movement Walking (120) Location -8/Materials Parts ------- > --- POWER (1) -------- (None) > --- PROPULSION (3) --- Aluminum Leg Carbon-fiber Leg > --- UTILITY (5) ------ Small Storage Unit Structural Scanner Medium Armor Plating Medium Armor Plating > --- WEAPON (2) ------- Grenade Launcher Mining Laser > --- INVENTORY (8) ---- Deuterium Engine Carbon-fiber Leg Advanced Targeting Computer Makeshift Thermal Plating Shield Generator Peak State ------------ > --- POWER ------------ Light Angular Momentum Engine > --- PROPULSION ------- Carbon-fiber Leg Carbon-fiber Leg Myomer Leg > --- UTILITY ---------- Small Storage Unit Structural Scanner Makeshift Thermal Plating Scrap Shield > --- WEAPON ----------- Grenade Launcher Mining Laser > --- INVENTORY -------- Shield Generator Grenade Launcher [Rating: 30] Favorites ----------- Power Light Ion Engine Engine Light Ion Engine Propulsion Compact Wheel Leg Carbon-fiber Leg Wheel Compact Wheel Utility Small Storage Unit Device Structural Scanner Storage Small Storage Unit Protection Scrap Shield Weapon EM Pulse Gun Energy Gun EM Pulse Gun Launcher Grenade Launcher Special Weapon Mining Laser Build | -11 -10 -10 -8 ------- Run | Yrd Mat Sub Mat Slots Evolved 4 | . . . 4 Power . | . . . . Propulsion 1 | . . . 1 Utility 3 | . . . 3 Weapon . | . . . . Parts Attached 25 | 6 6 6 7 Power 5 | 1 1 3 . Engine 5 | 1 1 3 . Core . | . . . . Reactor . | . . . . Propulsion 6 | 2 . 2 2 Treads . | . . . . Leg 4 | . . 2 2 Wheel 2 | 2 . . . Hover . | . . . . Flight . | . . . . Utility 7 | 1 1 1 4 Device 1 | . 1 . . Storage 1 | 1 . . . Processor . | . . . . Hackware . | . . . . Protection 5 | . . 1 4 Artifact . | . . . . Weapon 7 | 2 4 . 1 Energy Gun 3 | 2 1 . . Energy Cannon . | . . . . Ballistic Gun . | . . . . Ballistic Cannon . | . . . . Launcher 2 | . 2 . . Special Weapon 2 | . 1 . 1 Impact Weapon . | . . . . Slashing Weapon . | . . . . Piercing Weapon . | . . . . Special Melee Weapon . | . . . . Unidentified Prototypes . | . . . . Parts Lost 13 | . 1 5 7 Power 3 | . . 2 1 Propulsion 3 | . . 1 2 Utility 2 | . . . 2 Weapon 5 | . 1 2 2 Highest Loss Streak 4 | . 1 4 4 To Critical Strikes . | . . . . Average Backups 6 | 2 7 5 5 Power 1 | . 1 1 . Propulsion 1 | 1 2 . . Utility 1 | . . 1 3 Weapon 2 | . 2 2 . Tool/Special . | . . . . Unused Backups 10 | . 1 4 5 Power 1 | . . . 1 Propulsion 5 | . 1 3 1 Utility 4 | . . 1 3 Weapon . | . . . . Tool/Special . | . . . . Average Slot Usage (%) 93 | . 97 95 84 Engine 12 | . 14 13 9 Leg 14 | . . 20 24 Wheel 12 | . 28 7 . Device 12 | . 11 13 9 Storage 12 | . 14 13 9 Protection 3 | . . . 15 Energy Gun 14 | . 27 10 . Launcher 5 | . . 8 7 Special Weapon 4 | . . 4 10 Peak Build Rating 30 | 6 7 19 30 Average Rating 14 | 5 6 14 26 On Entrance 8 | . 6 7 19 Naked Turns . | . . . . Heaviest Build 44 | 12 14 26 44 Greatest Support 55 | 32 32 40 55 Greatest Overweight (x) 1 | . . . 1 Average Overweight (x) . | . . . . Largest Inventory Capacity 8 | 8 8 8 8 Average Capacity 7 | 7 8 7 8 Most Carried 8 | 5 8 8 8 Average Carried 6 | 2 7 6 5 Final Capacity 8 | 8 8 8 8 Final Carried 7 | 5 7 4 5 Class Distribution -------------------- 96% | Mutant 3% | Scavenger-Mutant Dominant Class ---------------- Mutant | -10/Materials Mutant | -10/Subcaves Mutant | -8/Materials Resources | -11 -10 -10 -8 ----------- Run | Yrd Mat Sub Mat Matter Collected 692 | 229 111 211 141 Remotely . | . . . . Salvage Created 866 | . 273 247 346 Parts 71 | . 25 21 25 Haulers Intercepted 1 | . 1 . . Recyclers Shooed . | . . . . Parts Field Recycled . | . . . . Retrieved Matter . | . . . . Parts Self-Destructed 3 | . . 3 . Prevented 2 | . . 2 . Kills | -11 -10 -10 -8 ------- Run | Yrd Mat Sub Mat Combat Hostiles Destroyed 33 | . 8 10 15 Guns 1 | . . 1 . Cannons 2 | . . . 2 AOE 30 | . 8 9 13 Classes Destroyed 9 | . 5 1 3 Worker 4 | . . . 4 Builder 1 | . . . 1 Hauler 1 | . 1 . . Operator 1 | . 1 . . Watcher 3 | . 3 . . Swarmer 14 | . 6 . 8 Grunt 9 | . 2 1 6 Sentry 1 | . . . 1 Subdweller 9 | . . 9 . Best Kill Streak 10 | . 3 6 10 Combat Bots Only 8 | . 3 6 8 Max Kills in Single Turn 5 | . 3 5 4 Gunslinging . | . . . . Exploded 5 | . 3 5 3 Melee . | . . . . Uniques/NPCs Destroyed . | . . . . Combat | -11 -10 -10 -8 -------- Run | Yrd Mat Sub Mat Hostile Shots Fired 146 | . 12 31 103 Missed 43 | . 2 10 31 Hits 103 | . 10 21 72 Projectile 103 | . 10 21 72 Critical Strikes 1 | . . . 1 Damage Taken 1583 | . 153 522 908 Core 162 | . . 84 78 Absorbed by Shields . | . . . . Core Remaining (%) 83 | 100 . 66 . Volleys Fired 74 | . 16 38 20 Largest 2 | . 2 2 2 Hottest 120 | . 100 100 120 Shots Fired 98 | . 29 45 24 Gun 41 | . 26 15 . Cannon . | . . . . Launcher 30 | . 2 12 16 Special 27 | . 1 18 8 Kinetic . | . . . . Thermal 27 | . 1 18 8 Explosive 30 | . 2 12 16 Electromagnetic 41 | . 26 15 . Robot Hit Streak 16 | . 7 16 4 Robot Miss Streak 2 | . 2 1 2 Penetration Max . | . . . . Secondary Targets . | . . . . Shots Hit Robots 45 | . 17 18 10 Core Hits 69 | . 13 20 36 Critical Kills . | . . . . Critical Parts Destroyed . | . . . . Critical Strikes . | . . . . Melee Attacks . | . . . . Impact . | . . . . Slashing . | . . . . Piercing . | . . . . Sneak Attacks . | . . . . Combat Hostiles . | . . . . Follow-up Attacks . | . . . . Damage Inflicted 2660 | . 673 978 1009 Guns 404 | . 255 149 . Cannons . | . . . . Explosions 2196 | . 418 829 949 Melee . | . . . . Ramming . | . . . . Kinetic . | . . . . Thermal 164 | . 104 . 60 Explosive 2092 | . 314 829 949 Electromagnetic 404 | . 255 149 . Impact . | . . . . Slashing . | . . . . Piercing . | . . . . Highest Corruption . | . . . . Average Corruption . | . . . . Corruption Purged . | . . . . Corruption Blocked . | . . . . Overload Shots . | . . . . Overflow Damage 57 | . 46 4 7 Projectiles . | . . . . Explosions 57 | . 46 4 7 Melee . | . . . . Knockbacks . | . . . . Impact . | . . . . Kinetic . | . . . . Secondary . | . . . . Self-Inflicted Damage 265 | . 59 121 85 Shots 13 | . 2 8 3 Rammed . | . . . . Targets Rammed . | . . . . Kicked . | . . . . Crushed . | . . . . Highest Temperature 54 | . 54 . 30 Average Temperature 17 | . 22 . 9 Received Heat Transfer 303 | . 6 63 234 Siege Activations . | . . . . Martial Activations . | . . . . Shielding Activations . | . . . . Robots Disrupted . | . . . . Combat Hostiles . | . . . . Robots Corrupted . | . . . . Combat Hostiles . | . . . . Parts Fried 1 | . 1 . . Impact Corruptions . | . . . . Robots Melted . | . . . . Combat Hostiles . | . . . . Parts Melted . | . . . . Heat Transferred 325 | . 150 . 175 Parts Sabotaged . | . . . . Parts Stolen . | . . . . Parts Stripped . | . . . . Power Chain Reactions 2 | . 2 . . Alert | -11 -10 -10 -8 ------- Run | Yrd Mat Sub Mat Maximum Alert Level 1 | . . . 1 Low Security (%) 97 | 100 100 . 91 Level 1 2 | . . . 8 Level 2 . | . . . . Level 3 . | . . . . Level 4 . | . . . . Level 5 . | . . . . High Security . | . . . . Max Security . | . . . . Peak Influence 306 | . 177 . 306 Initial . | . . . . Average 75 | . 84 . 74 Influence Increases 781 | . 295 20 466 Destroy 0b10 Robot/C 480 | . 160 20 300 Destroy 0b10 Robot/NC 50 | . 25 . 25 Destroy Leader 78 | . 38 . 40 Successful Hack 11 | . 11 . . Disable Machine 15 | . . . 15 Destroy Structure 117 | . 31 . 86 Lose Combat Pursuer 30 | . 30 . . Influence Decreases 495 | . 230 85 180 Entered New Map 32 | . . 32 . Time Decay 383 | . 220 53 110 Lost Part 80 | . 10 . 70 Squads Dispatched 4 | . 1 . 3 Investigation 2 | . 1 . 1 Extermination . | . . . . Reinforcement 2 | . . . 2 Assault . | . . . . Garrison . | . . . . Intercept . | . . . . Searches Triggered . | . . . . Construction Impeded . | . . . . Haulers Reinforced . | . . . . Active Scanning Responses . | . . . . Cargo Convoy Interrupts . | . . . . Stealth | -11 -10 -10 -8 --------- Run | Yrd Mat Sub Mat Distress Signals 4 | . 1 . 3 Communications Jammed . | . . . . Distress Signals . | . . . . Times Spotted 51 | . 16 15 20 Peak Tracking Total 9 | . 4 9 7 Tactical Retreats 1 | . 1 . . Traps | -11 -10 -10 -8 ------- Run | Yrd Mat Sub Mat Traps Triggered 2 | . 1 . 1 Indirectly . | . . . . Trap Hack Attempts . | . . . . Triggered . | . . . . Disarmed . | . . . . Reprogrammed . | . . . . Reused . | . . . . Traps Extracted . | . . . . Installed . | . . . . Triggered . | . . . . Machines | -11 -10 -10 -8 ---------- Run | Yrd Mat Sub Mat Machines Disabled 1 | . . . 1 Max in Single Turn 1 | . . . 1 Machines Repaired . | . . . . Machines Dismantled . | . . . . Machines Sabotaged . | . . . . Overloaded Fab Kills . | . . . . Hacking | -11 -10 -10 -8 --------- Run | Yrd Mat Sub Mat Machines Accessed 8 | . 7 1 . Terminals 7 | . 7 . . Fabricators . | . . . . Repair Stations . | . . . . Recycling Units . | . . . . Scanalyzers . | . . . . Garrison Access . | . . . . Total Hacks 24 | . 19 5 . Successful 11 | . 6 5 . Failed 13 | . 13 . . Catastrophic 2 | . 2 . . Database Lockouts . | . . . . Manual 12 | . 12 . . Terminals 19 | . 19 . . Fabricators . | . . . . Repair Stations . | . . . . Recycling Units . | . . . . Scanalyzers . | . . . . Garrison Access . | . . . . Terminal Hacks 8 | . 3 5 . Record 5 | . . 5 . Robot Analysis 1 | . 1 . . Locate Traps 1 | . 1 . . Zone Layout 1 | . 1 . . Fabricator Hacks . | . . . . Repair Station Hacks . | . . . . Recycling Unit Hacks . | . . . . Scanalyzer . | . . . . Garrison Access Hacks . | . . . . Unauthorized Hacks 3 | . 3 . . Terminals 3 | . 3 . . Botnet 3 | . 3 . . Fabricators . | . . . . Repair Stations . | . . . . Recycling Units . | . . . . Scanalyzers . | . . . . Garrison Access . | . . . . Data Cores Recovered 1 | . 1 . . Used 1 | . 1 . . Hacking Detections 7 | . 7 . . Full Trace Events 2 | . 2 . . Feedback Events . | . . . . Feedback Blocked . | . . . . Robot Schematics Acquired . | . . . . Robots Built . | . . . . Authchips . | . . . . Time . | . . . . Total Robot Build Rating . | . . . . Part Schematics Acquired . | . . . . Parts Built . | . . . . Authchips . | . . . . Time . | . . . . Total Part Build Rating . | . . . . Parts Repaired . | . . . . Time . | . . . . Parts Recycled . | . . . . Recycled Matter . | . . . . Retrieved Matter . | . . . . Retrieved Components . | . . . . Parts Scanalyzed . | . . . . Part Schematics Acquired . | . . . . Parts Damaged . | . . . . Bothacking | -11 -10 -10 -8 ------------ Run | Yrd Mat Sub Mat Used RIF Installer . | . . . . Robots Hacked . | . . . . Non-combat . | . . . . Combat . | . . . . Robot Hacks Applied . | . . . . Relay Couplers Released . | . . . . Fabnet Peak Effective % . | . . . . Robots Rewired . | . . . . Allies Hacked . | . . . . Hacks Repelled . | . . . . Allies | -11 -10 -10 -8 -------- Run | Yrd Mat Sub Mat Total Allies . | . . . . Largest Group . | . . . . Highest-Rated Group . | . . . . Highest-Rated Ally . | . . . . Total Orders . | . . . . Ally Attacks . | . . . . Total Damage . | . . . . Kills . | . . . . Allies Corrupted . | . . . . Allies Melted . | . . . . Intel | -11 -10 -10 -8 ------- Run | Yrd Mat Sub Mat Active Infowar (turns) 1790 | . 539 874 377 Structural 1790 | . 539 874 377 Robot Analysis Total 1 | . 1 . . Derelict Logs Recovered 1 | . . 1 . Drone Launches . | . . . . Drone Recoveries . | . . . . Exploration | -11 -10 -10 -8 ------------- Run | Yrd Mat Sub Mat Turns Passed 1961 | 66 623 895 377 Spaces Moved 1443 | 54 534 622 233 Core 3 | 3 . . . Treads . | . . . . Legs 701 | . . 468 233 Wheels 739 | 51 534 154 . Hover . | . . . . Flight . | . . . . Fastest Speed 50 | 50 100 100 120 Average Speed 110 | 97 100 115 125 Slowest Speed 190 | 100 100 120 190 Overloaded Moves . | . . . . Propulsion Burnouts . | . . . . Robots Hopped . | . . . . Potential Cave-ins . | . . . . Cave-ins Triggered . | . . . . Exploration Rate (%) 39 | 4 91 38 26 Regions Visited 3 Branch Regions 1 Pre-discovered Areas . | . . . . Known Exits Taken . | . . . . Unknown Exits Taken 3 | 1 1 1 . Scrap Searched 2 | . . 2 . Spaces Dug 1 | . 1 . . Terrain Destroyed 197 | . 29 74 94 Melee . | . . . . Projectile 3 | . 1 . 2 AOE 194 | . 28 74 92 Terrain Rammed . | . . . . Walls Destroyed . | . . . . Machines Disabled . | . . . . Actions | -11 -10 -10 -8 --------- Run | Yrd Mat Sub Mat Total 1656 | 65 592 716 283 Wait 62 | . 26 24 12 Move 1440 | 53 533 621 233 Hop . | . . . . Pick Up 25 | 6 6 5 8 Fast Attach 14 | 5 1 5 3 Attach 12 | 1 2 4 5 Detach . | . . . . Swap 16 | . 4 11 1 Drop 13 | . 4 8 1 Fire 74 | . 16 38 20 Melee . | . . . . Ram . | . . . . Kick . | . . . . Crush . | . . . . Escape Stasis . | . . . . Rewire . | . . . . Trap . | . . . . Miscellaneous . | . . . . Route ------- -11/Scrapyard -10/Materials (discovered 4 exits: [*Mat x2] / [*Min] / *Sub) -10/Subcaves -8/Materials History --------- Turn | Location | Event 14 | -11/Scrapyard | Discovered new exit (range 15) 67 | -11/Scrapyard | Entered Materials 293 | -10/Materials | Discovered new exit (range 13) 304 | -10/Materials | Build established: Mutant 341 | -10/Materials | Discovered new exit (range 5) 508 | -10/Materials | Discovered new exit (range 14) 559 | -10/Materials | Discovered new exit (range 14) 690 | -10/Materials | Entered Subcaves 842 | -10/Subcaves | Shifting Twisted Machinery released Mak. Thermal Plating 885 | -10/Subcaves | Ambushed by swarm of Subdwellers 929 | -10/Subcaves | Lost 4 allies 939 | -10/Subcaves | Shifting Twisted Machinery released Sub. Laser 1010 | -10/Subcaves | Shifting Twisted Machinery released Flamer 1010 | -10/Subcaves | Shifting Twisted Machinery released Sub. Shrapnel Launcher 1227 | -10/Subcaves | Discovered new exit (range 10) 1265 | -10/Subcaves | Learned Materials security intel 1305 | -10/Subcaves | Disturbed a concealed Subdweller 1317 | -10/Subcaves | Ambushed by Subdweller buried in earth 1317 | -10/Subcaves | Ambushed by Subdweller buried in earth 1358 | -10/Subcaves | Lost 4 parts (2p2w) 1542 | -10/Subcaves | Visited Clippyterm 1546 | -10/Subcaves | Learned Factory fabricator intel 1546 | -10/Subcaves | Learned Research machine intel 1585 | -10/Subcaves | Entered Materials 1585 | -8/Materials | Evolved 4 slots: Propulsion x1, Utility x3 1956 | -8/Materials | Destroyed 8 combat bots 1958 | -8/Materials | Lost 4 parts (1n2u1w) 1962 | -8/Materials | Self-destructed Last Messages --------------- 01932_ R-06 Scavenger collects Lgt. Assault Rifle. 01933_ U-05 Engineer builds a Wall. 01933_ S-10 Pest destroyed. 01935_ K-01 Serf destroyed. 01935_ S-10 Pest destroyed. 01937_ U-05 Engineer lays Concrete. 01938_ O-16 Technician: "IFF HANDSHAKE FAILED. SECURING TERMINAL." 01941_ R-06 Scavenger collects Wheel. 01943_ K-01 Serf collects debris. 01943_ R-06 Scavenger collects Lgt. Assault Rifle. 01947_ R-06 Scavenger collects Med. Matter Pod. 01950_ R-06 Scavenger collects Flight Unit. 01955_ The unstable cave ceiling collapses. 01955_ ALERT: Hostiles spotted, dispatching reinforcements to Terminal M007. 01956_ K-01 Serf collects debris. 01962_ Lgt. Angular Momentum Engine destroyed. Map ----- +----------------------------------------------------+ | ?????????????????????????????????????????????????? | | ?????????????????????????????????????????????????? | | ?????????????????????????????????????????????????? | | ?????????????????????????????????????????????????? | | ?????????????????????????????????????????????????? | | ?????????????????????????????????????????????????? | | ?????????????????????????????????????????????????? | | ?????????????????????????????????????????????????? | | ?????????????????????????????????????????????????? | | ?????????????????????????????????????????????????? | | ?????????????????????????????????????????????????? | | ????????????????????## # ??????????????????? | | ????????????????????#####+#### ??????????????????? | | ????????????????????## # ??????????????????? | | ????????????????????## ????????????????????? | | ???????????????????? ????????????????????? | | ?????????????????????? T ????????????????????? | | ?????????????????????? ?????????????????????? | | ??????????????????????? ?????????????????????? | | ?????????????????????? ????????????????????? | | ??????????????????????## ##????????????????????? | | ??????????????????????## a##????????????????????? | | ??????????????????????## ##????????????????????? | | ??????????????????????## ##????????????????????? | | ??????????????????????## ##????????????????????? | | ????????????????????#### @ ###########???????????? | | ???????????????????? ###w ################??????? | | ???????????????????? # # #######??????? | | ???????????????????? # # ##### ??? | | ???????????????????? # ##### | | ???????????????????? + Y rr ! | | ???????????????????? # ##### | | ???????????????????? # ##### ??? | | ???????????????????? # # ###### ####??????? | | ???????????????????? ## ########## %###??????? | | ????????????????????### ######?## ##???????? | | ?????????????????????## ##?????## % ##???????? | | ?????????????????????## ##?????## ##???????? | | ????????????????????? ##?####### ####### | | ????????????????????? ##?#######/########### | | ???????????????????? ##?## | | ???????????????????? ???## ! | | ?????????????????????? ???## | | ????????????????????????####???## """" """" """ | | ????????????????????????####???## """" """" "" | | ???????????????????????????????## """" """" " | | ???????????????????????????????## | | ?????????????????????????????#### | | ?????????????????????????????########+#####+#+#### | | ?????????????????????????????## ! + | +----------------------------------------------------+ Best States ------------- Heat Dissipation 31 Energy Generation 18 Energy Capacity 250 Matter Stores 300 Matter Capacity 300 Sight Range 16 Terrain Scan Density 10 Armor Coverage 1025 Resistance: TH 10 Evasion (%) 55 Item Schematics ----------------- None Robot Schematics ------------------ None Fabricated ------------ Nothing Repaired ---------- Nothing Alien Tech Used ----------------- None Achievements -------------- None Challenges ------------ None Game ------ Seed SalvageSpikedNanoactuators Manual? 0 Play Time 00:36:07 Cumulative 109.1 hours Start 2025.08.04 @ 23:37:00 End 2025.08.06 @ 22:39:04 Sessions 3 Manual Loads 0 Difficulty Rogue Special Mode None Game No. 53 Rogue 53 Adventurer 0 Explorer 0 Win Type - Total 1 Types 1/0/0/0/0/0/0/0/0/0 Lore% 25 Gallery% 42 Achievement% 38 Wizard Run 0 Options --------- Layout 1 ASCII 0 Keyboard 0 Movement Numpad Keybinds 0 Fullscreen 1 Font 24/Smallcaps Map View 50x35 Zoom Use 0% Tactical HUD 1 Map Filters NONE Filters NONE Steam 1 RUN: 444616e5-d16d-404f-a8fb-c325fbba603e